Workbook

Sheet Sheet1
B1: Monte Carlo Integration
B3: This program applies Monte Carlo methods
B4: to approximate the definite integral
B5: of any desired positive function
D6: y = f(x)
B7: on an interval from x = a to x = b.
A10: Enter the function in terms of x: f(x) = | F10: sin(x)
A12: Now enter the interval for x:
C13: xMin = | D13: 0
C14: xMax = | D14: 3.14
D17: 0 | J17: The graph of the function y = | M17: =F10 -> sin(x)
I20: How many random points? (500 - 2500)
A21: Click each item below for suggestions and investigations | J21: =M21+500 -> 2000 | M21: 1500
B22: Item 1
B23: Item 2 | I23: ="Of the "&TEXT(n,"0")&" random points, "& TEXT(hits,"0") &" (or " & TEXT(100*hits/n,"0.00") & "%), fell under the curve" -> Of the 2000 random points, 1305 (or 65.25%), fell under the curve
B24: Item 3
B25: Item 4 | I25: ="So the area under the curve is approximately " & TEXT(100*hits/n,"0.00") & "% of the total area" -> So the area under the curve is approximately 65.25% of the total area
B26: Item 5
J27: =" or approximately " & TEXT(100*hits/n,"0.00") & "% of "&TEXT(xMax-xMin,"0.00") &" by " &TEXT(fmax-fmin,"0.00") & " = " -> or approximately 65.25% of 3.14 by 1.00 = | P27: =(xMax-xMin)*(fmax-fmin) -> 3.140
J29: which is about | K29: =hits/n*(xMax-xMin)*(fmax-fmin) -> 2.049 | L29: square units.
A30: To access/download all the DIGMath Apps for Calculus
A31: Click this link: | C31: DIGMath for Calculus | I31: The actual area under the curve is about | O31: =Sheet2!S3 -> 2.000 | P31: square units.
A33: Created by: Sheldon P. Gordon
A34: Farmingdale State College
A35: Development of this module was supported by the
A36: NSF's Division of Undergraduate Education
A37: under grants DUE-0310123 and DUE-0442160.

Sheet Sheet2
A1: fmin = | B1: =MIN(E3:E1003) -> 0 | C1: i | D1: x | E1: y = f(x) | F1: random | G1: random | H1: corresp | I1: random | J1: height | K1: 1 if under | L1: under the curve | N1: over the curve | R1: Simpson
A2: fmax = | B2: =MAX(E3:E1003) -> 0.9999996829 | F2: integer | G2: integer | H2: x | I2: y | J2: f(x) | K2: curve | S2: Simp =
C3: 1 | D3: =Sheet1!D13 -> 0 | E3: =SIN(x) -> 0 | F3: =INT(1000*ABS(RAND()))+1 -> 327 | G3: =IF(F3>0,F3,-F3) -> 327 | H3: =LOOKUP(G3,C$3:C$1003,D$3:D$1003) -> 1.02364 | I3: =fmin+(fmax-fmin)*ABS(RAND()) -> 0.869765591 | J3: =LOOKUP(H3,D$3:D$1003,E$3:E$1003) -> 0.8540074248 | K3: =IF(I3>J3,0,1) -> 0 | L3: =IF(K3=1,H3,xMin) -> 0 | M3: =IF(K3=1,I3,fmax) -> 0.9999996829 | N3: =IF(K3=0,H3,xMax) -> 1.02364 | O3: =IF(K3=0,I3,0) -> 0.869765591 | P3: hits = | Q3: =SUM(K3:K2503) -> 1305 | R3: =E3 -> 0 | S3: =SUM(R3:R1003)*B20/3 -> 2.000
A4: verticals | C4: 2 | D4: =D3+Sheet2!B$20 -> 0.00314 | E4: 0.00313999484 | F4: =INT(1000*ABS(RAND()))+1 -> 945 | G4: =IF(F4>0,F4,-F4) -> 945 | H4: =LOOKUP(G4,C$3:C$1003,D$3:D$1003) -> 2.96416 | I4: 0.1609571126 | J4: =LOOKUP(H4,D$3:D$1003,E$3:E$1003) -> 0.1765031186 | K4: =IF(I4>J4,0,1) -> 1 | L4: 2.96416 | M4: 0.1609571126 | N4: 3.14 | O4: =IF(K4=0,I4,0) -> 0 | P4: % = | Q4: =hits/n*100 -> 65.25 | R4: =4*E4 -> 0.01255997936
A5: =xMin -> 0 | B5: =fmin -> 0 | C5: 3 | D5: =D4+Sheet2!B$20 -> 0.00628 | E5: 0.006279958721 | F5: =INT(1000*ABS(RAND()))+1 -> 922 | G5: =IF(F5>0,F5,-F5) -> 922 | H5: 2.89194 | I5: 0.05234442323 | J5: 0.2470673961 | K5: 1 | L5: 2.89194 | M5: 0.05234442323 | N5: 3.14 | O5: 0 | R5: =2*E5 -> 0.01255991744
A6: =xMin -> 0 | B6: =fmax -> 0.9999996829 | C6: 4 | D6: =D5+Sheet2!B$20 -> 0.00942 | E6: 0.009419860684 | F6: 416 | G6: 416 | H6: 1.3031 | I6: 0.967016412 | J6: 0.9643828006 | K6: 0 | L6: 0 | M6: 0.9999996829 | N6: 1.3031 | O6: 0.967016412 | R6: =4*E6 -> 0.03767944274
C7: 5 | D7: =D6+Sheet2!B$20 -> 0.01256 | E7: 0.01255966977 | F7: 808 | G7: 808 | H7: 2.53398 | I7: 0.2006946204 | J7: 0.5709090457 | K7: 1 | L7: 2.53398 | M7: 0.2006946204 | N7: 3.14 | O7: 0 | R7: =2*E7 -> 0.02511933954
A8: =xMax -> 3.14 | B8: =fmin -> 0 | C8: 6 | D8: =D7+Sheet2!B$20 -> 0.0157 | E8: 0.01569935503 | F8: 924 | G8: 924 | H8: 2.89822 | I8: 0.04921633605 | J8: 0.2409772548 | K8: 1 | L8: 2.89822 | M8: 0.04921633605 | N8: 3.14 | O8: 0 | R8: =4*E8 -> 0.0627974201
A9: =xMax -> 3.14 | B9: =fmax -> 0.9999996829 | C9: 7 | D9: =D8+Sheet2!B$20 -> 0.01884 | E9: 0.01883888549 | F9: 421 | G9: 421 | H9: 1.3188 | I9: 0.04053008869 | J9: 0.9684165922 | K9: 1 | L9: 1.3188 | M9: 0.04053008869 | N9: 3.14 | O9: 0 | R9: =2*E9 -> 0.03767777098
C10: 8 | D10: =D9+Sheet2!B$20 -> 0.02198 | E10: 0.02197823021 | F10: 756 | G10: 756 | H10: 2.3707 | I10: 0.5641892291 | J10: 0.6967758067 | K10: 1 | L10: 2.3707 | M10: 0.5641892291 | N10: 3.14 | O10: 0 | R10: =4*E10 -> 0.08791292085
A11: =xMin -> 0 | B11: =fmax -> 0.9999996829 | C11: 9 | D11: =D10+Sheet2!B$20 -> 0.02512 | E11: 0.02511735824 | F11: 763 | G11: 763 | H11: 2.39268 | I11: 0.7539360913 | J11: 0.680842758 | K11: 0 | L11: 0 | M11: 0.9999996829 | N11: 2.39268 | O11: 0.7539360913 | R11: 0.05023471647
A12: =xMax -> 3.14 | B12: =fmax -> 0.9999996829 | C12: 10 | D12: =D11+Sheet2!B$20 -> 0.02826 | E12: 0.02825623861 | F12: 199 | G12: 199 | H12: 0.62172 | I12: 0.1179188583 | J12: 0.5824341713 | K12: 1 | L12: 0.62172 | M12: 0.1179188583 | N12: 3.14 | O12: 0 | R12: 0.1130249545
C13: 11 | D13: =D12+Sheet2!B$20 -> 0.0314 | E13: 0.0313948404 | F13: 373 | G13: 373 | H13: 1.16808 | I13: 0.6332227617 | J13: 0.9199998098 | K13: 1 | L13: 1.16808 | M13: 0.6332227617 | N13: 3.14 | O13: 0 | R13: 0.06278968079
A14: =xMin -> 0 | B14: =fmin -> 0 | C14: 12 | D14: =D13+Sheet2!B$20 -> 0.03454 | E14: 0.03453313264 | F14: 166 | G14: 166 | H14: 0.5181 | I14: 0.8697206548 | J14: 0.4952303855 | K14: 0 | L14: 0 | M14: 0.9999996829 | N14: 0.5181 | O14: 0.8697206548 | R14: 0.1381325306
A15: =xMax -> 3.14 | B15: =fmin -> 0 | C15: 13 | D15: =D14+Sheet2!B$20 -> 0.03768 | E15: 0.0376710844 | F15: 237 | G15: 237 | H15: 0.74104 | I15: 0.5320459154 | J15: 0.6750555541 | K15: 1 | L15: 0.74104 | M15: 0.5320459154 | N15: 3.14 | O15: 0 | R15: 0.0753421688
C16: 14 | D16: =D15+Sheet2!B$20 -> 0.04082 | E16: 0.04080866474 | F16: 798 | G16: 798 | H16: 2.50258 | I16: 0.3886515405 | J16: 0.596403204 | K16: 1 | L16: 2.50258 | M16: 0.3886515405 | N16: 3.14 | O16: 0 | R16: 0.163234659
C17: 15 | D17: =D16+Sheet2!B$20 -> 0.04396 | E17: 0.04394584272 | F17: 928 | G17: 928 | H17: 2.91078 | I17: 0.4143038808 | J17: 0.2287687017 | K17: 0 | L17: 0 | M17: 0.9999996829 | N17: 2.91078 | O17: 0.4143038808 | R17: 0.08789168544
C18: 16 | D18: =D17+Sheet2!B$20 -> 0.0471 | E18: 0.04708258741 | F18: 442 | G18: 442 | H18: 1.38474 | I18: 0.2442440022 | J18: 0.9827413946 | K18: 1 | L18: 1.38474 | M18: 0.2442440022 | N18: 3.14 | O18: 0 | R18: 0.1883303497
C19: 17 | D19: =D18+Sheet2!B$20 -> 0.05024 | E19: 0.05021886789 | F19: 900 | G19: 900 | H19: 2.82286 | I19: 0.3171094923 | J19: 0.3133632982 | K19: 0 | L19: 0 | M19: 0.9999996829 | N19: 2.82286 | O19: 0.3171094923 | R19: 0.1004377358
A20: delta x = | B20: =(Sheet1!D14-Sheet1!D13)/1000 -> 0.00314 | C20: 18 | D20: =D19+Sheet2!B$20 -> 0.05338 | E20: 0.05335465323 | F20: 856 | G20: 856 | H20: 2.6847 | I20: 0.8873484334 | J20: 0.4411616226 | K20: 0 | L20: 0 | M20: 0.9999996829 | N20: 2.6847 | O20: 0.8873484334 | R20: 0.2134186129
C21: 19 | D21: =D20+Sheet2!B$20 -> 0.05652 | E21: 0.05648991252 | F21: 976 | G21: 976 | H21: 3.0615 | I21: 0.3766225522 | J21: 0.08000705088 | K21: 0 | L21: 0 | M21: 0.9999996829 | N21: 3.0615 | O21: 0.3766225522 | R21: 0.112979825
A22: n = | B22: =Sheet1!J21 -> 2000 | C22: 20 | D22: =D21+Sheet2!B$20 -> 0.05966 | E22: 0.05962461484 | F22: 156 | G22: 156 | H22: 0.4867 | I22: 0.1979269194 | J22: 0.4677116325 | K22: 1 | L22: 0.4867 | M22: 0.1979269194 | N22: 3.14 | O22: 0 | R22: 0.2384984593
C23: 21 | D23: =D22+Sheet2!B$20 -> 0.0628 | E23: 0.06275872928 | F23: 423 | G23: 423 | H23: 1.32508 | I23: 0.2807992695 | J23: 0.9699633265 | K23: 1 | L23: 1.32508 | M23: 0.2807992695 | N23: 3.14 | O23: 0 | R23: 0.1255174586
C24: 22 | D24: =D23+Sheet2!B$20 -> 0.06594 | E24: 0.06589222495 | F24: 874 | G24: 874 | H24: 2.74122 | I24: 0.6852561543 | J24: 0.3897615519 | K24: 0 | L24: 0 | M24: 0.9999996829 | N24: 2.74122 | O24: 0.6852561543 | R24: 0.2635688998
C25: 23 | D25: =D24+Sheet2!B$20 -> 0.06908 | E25: 0.06902507095 | F25: 500 | G25: 500 | H25: 1.56686 | I25: 0.1143111382 | J25: 0.9999922527 | K25: 1 | L25: 1.56686 | M25: 0.1143111382 | N25: 3.14 | O25: 0 | R25: 0.1380501419
C26: 24 | D26: =D25+Sheet2!B$20 -> 0.07222 | E26: 0.07215723639 | F26: 408 | G26: 408 | H26: 1.27798 | I26: 0.6402342007 | J26: 0.9574347414 | K26: 1 | L26: 1.27798 | M26: 0.6402342007 | N26: 3.14 | O26: 0 | R26: 0.2886289455
C27: 25 | D27: =D26+Sheet2!B$20 -> 0.07536 | E27: 0.07528869038 | F27: 900 | G27: 900 | H27: 2.82286 | I27: 0.834951384 | J27: 0.3133632982 | K27: 0 | L27: 0 | M27: 0.9999996829 | N27: 2.82286 | O27: 0.834951384 | R27: 0.1505773808
C28: 26 | D28: =D27+Sheet2!B$20 -> 0.0785 | E28: 0.07841940207 | F28: 630 | G28: 630 | H28: 1.97506 | I28: 0.4501550422 | J28: 0.9193922746 | K28: 1 | L28: 1.97506 | M28: 0.4501550422 | N28: 3.14 | O28: 0 | R28: 0.3136776083
C29: 27 | D29: =D28+Sheet2!B$20 -> 0.08164 | E29: 0.08154934057 | F29: 635 | G29: 635 | H29: 1.99076 | I29: 0.8255306562 | J29: 0.9131037523 | K29: 1 | L29: 1.99076 | M29: 0.8255306562 | N29: 3.14 | O29: 0 | R29: 0.1630986811
C30: 28 | D30: =D29+Sheet2!B$20 -> 0.08478 | E30: 0.08467847502 | F30: 201 | G30: 201 | H30: 0.628 | I30: 0.06692483569 | J30: 0.5875275257 | K30: 1 | L30: 0.628 | M30: 0.06692483569 | N30: 3.14 | O30: 0 | R30: 0.3387139001
C31: 29 | D31: =D30+Sheet2!B$20 -> 0.08792 | E31: 0.08780677458 | F31: 851 | G31: 851 | H31: 2.669 | I31: 0.845786086 | J31: 0.4551962884 | K31: 0 | L31: 0 | M31: 0.9999996829 | N31: 2.669 | O31: 0.845786086 | R31: 0.1756135492
C32: 30 | D32: =D31+Sheet2!B$20 -> 0.09106 | E32: 0.0909342084 | F32: 82 | G32: 82 | H32: 0.25434 | I32: 0.546591082 | J32: 0.251606696 | K32: 0 | L32: 0 | M32: 0.9999996829 | N32: 0.25434 | O32: 0.546591082 | R32: 0.3637368336
C33: 31 | D33: =D32+Sheet2!B$20 -> 0.0942 | E33: 0.09406074565 | F33: 397 | G33: 397 | H33: 1.24344 | I33: 0.6953938672 | J33: 0.9468957005 | K33: 1 | L33: 1.24344 | M33: 0.6953938672 | N33: 3.14 | O33: 0 | R33: 0.1881214913
C34: 32 | D34: =D33+Sheet2!B$20 -> 0.09734 | E34: 0.0971863555 | F34: 482 | G34: 482 | H34: 1.51034 | I34: 0.3682383366 | J34: 0.9981730728 | K34: 1 | L34: 1.51034 | M34: 0.3682383366 | N34: 3.14 | O34: 0 | R34: 0.388745422
C35: 33 | D35: =D34+Sheet2!B$20 -> 0.10048 | E35: 0.1003110071 | F35: 602 | G35: 602 | H35: 1.88714 | I35: 0.3590715157 | J35: 0.9503792286 | K35: 1 | L35: 1.88714 | M35: 0.3590715157 | N35: 3.14 | O35: 0 | R35: 0.2006220143
C36: 34 | D36: =D35+Sheet2!B$20 -> 0.10362 | E36: 0.1034346697 | F36: 116 | G36: 116 | H36: 0.3611 | I36: 0.6787078905 | J36: 0.3533035064 | K36: 0 | L36: 0 | M36: 0.9999996829 | N36: 0.3611 | O36: 0.6787078905 | R36: 0.4137386789
C37: 35 | D37: =D36+Sheet2!B$20 -> 0.10676 | E37: 0.1065573125 | F37: 175 | G37: 175 | H37: 0.54636 | I37: 0.6169115721 | J37: 0.5195805838 | K37: 0 | L37: 0 | M37: 0.9999996829 | N37: 0.54636 | O37: 0.6169115721 | R37: 0.213114625
C38: 36 | D38: =D37+Sheet2!B$20 -> 0.1099 | E38: 0.1096789047 | F38: 807 | G38: 807 | H38: 2.53084 | I38: 0.2988937854 | J38: 0.5734842088 | K38: 1 | L38: 2.53084 | M38: 0.2988937854 | N38: 3.14 | O38: 0 | R38: 0.4387156187
C39: 37 | D39: =D38+Sheet2!B$20 -> 0.11304 | E39: 0.1127994155 | F39: 548 | G39: 548 | H39: 1.71758 | I39: 0.2050379722 | J39: 0.9892466047 | K39: 1 | L39: 1.71758 | M39: 0.2050379722 | N39: 3.14 | O39: 0 | R39: 0.2255988309
C40: 38 | D40: =D39+Sheet2!B$20 -> 0.11618 | E40: 0.1159188141 | F40: 62 | G40: 62 | H40: 0.19154 | I40: 0.5944556588 | J40: 0.190370957 | K40: 0 | L40: 0 | M40: 0.9999996829 | N40: 0.19154 | O40: 0.5944556588 | R40: 0.4636752563
C41: 39 | D41: =D40+Sheet2!B$20 -> 0.11932 | E41: 0.1190370698 | F41: 531 | G41: 531 | H41: 1.6642 | I41: 0.2565431208 | J41: 0.9956410473 | K41: 1 | L41: 1.6642 | M41: 0.2565431208 | N41: 3.14 | O41: 0 | R41: 0.2380741396
C42: 40 | D42: =D41+Sheet2!B$20 -> 0.12246 | E42: 0.1221541518 | F42: 264 | G42: 264 | H42: 0.82582 | I42: 0.04309353753 | J42: 0.7351039519 | K42: 1 | L42: 0.82582 | M42: 0.04309353753 | N42: 3.14 | O42: 0 | R42: 0.4886166074
C43: 41 | D43: =D42+Sheet2!B$20 -> 0.1256 | E43: 0.1252700295 | F43: 932 | G43: 932 | H43: 2.92334 | I43: 0.9624898722 | J43: 0.2165240599 | K43: 0 | L43: 0 | M43: 0.9999996829 | N43: 2.92334 | O43: 0.9624898722 | R43: 0.250540059
C44: 42 | D44: =D43+Sheet2!B$20 -> 0.12874 | E44: 0.1283846721 | F44: 732 | G44: 732 | H44: 2.29534 | I44: 0.5888571342 | J44: 0.7488019505 | K44: 1 | L44: 2.29534 | M44: 0.5888571342 | N44: 3.14 | O44: 0 | R44: 0.5135386882
C45: 43 | D45: =D44+Sheet2!B$20 -> 0.13188 | E45: 0.1314980488 | F45: 455 | G45: 455 | H45: 1.42556 | I45: 0.645872516 | J45: 0.9894717308 | K45: 1 | L45: 1.42556 | M45: 0.645872516 | N45: 3.14 | O45: 0 | R45: 0.2629960976
C46: 44 | D46: =D45+Sheet2!B$20 -> 0.13502 | E46: 0.134610129 | F46: 387 | G46: 387 | H46: 1.21204 | I46: 0.1538310127 | J46: 0.9363342138 | K46: 1 | L46: 1.21204 | M46: 0.1538310127 | N46: 3.14 | O46: 0 | R46: 0.538440516
C47: 45 | D47: =D46+Sheet2!B$20 -> 0.13816 | E47: 0.137720882 | F47: 104 | G47: 104 | H47: 0.32342 | I47: 0.8060972935 | J47: 0.3178110998 | K47: 0 | L47: 0 | M47: 0.9999996829 | N47: 0.32342 | O47: 0.8060972935 | R47: 0.275441764
C48: 46 | D48: =D47+Sheet2!B$20 -> 0.1413 | E48: 0.1408302772 | F48: 973 | G48: 973 | H48: 3.05208 | I48: 0.624971327 | J48: 0.08939316455 | K48: 0 | L48: 0 | M48: 0.9999996829 | N48: 3.05208 | O48: 0.624971327 | R48: 0.5633211087
C49: 47 | D49: =D48+Sheet2!B$20 -> 0.14444 | E49: 0.1439382838 | F49: 948 | G49: 948 | H49: 2.97358 | I49: 0.7016679119 | J49: 0.1672233179 | K49: 0 | L49: 0 | M49: 0.9999996829 | N49: 2.97358 | O49: 0.7016679119 | R49: 0.2878765676
C50: 48 | D50: =D49+Sheet2!B$20 -> 0.14758 | E50: 0.1470448712 | F50: 671 | G50: 671 | H50: 2.1038 | I50: 0.1561232612 | J50: 0.8612847237 | K50: 1 | L50: 2.1038 | M50: 0.1561232612 | N50: 3.14 | O50: 0 | R50: 0.5881794849
C51: 49 | D51: =D50+Sheet2!B$20 -> 0.15072 | E51: 0.1501500089 | F51: 178 | G51: 178 | H51: 0.55578 | I51: 0.0398303684 | J51: 0.5276060622 | K51: 1 | L51: 0.55578 | M51: 0.0398303684 | N51: 3.14 | O51: 0 | R51: 0.3003000177
C52: 50 | D52: =D51+Sheet2!B$20 -> 0.15386 | E52: 0.1532536661 | F52: 930 | G52: 930 | H52: 2.91706 | I52: 0.7627330033 | J52: 0.2226507713 | K52: 0 | L52: 0 | M52: 0.9999996829 | N52: 2.91706 | O52: 0.7627330033 | R52: 0.6130146643
C53: 51 | D53: =D52+Sheet2!B$20 -> 0.157 | E53: 0.1563558123 | F53: 434 | G53: 434 | H53: 1.35962 | I53: 0.2320123314 | J53: 0.9777850211 | K53: 1 | L53: 1.35962 | M53: 0.2320123314 | N53: 3.14 | O53: 0 | R53: 0.3127116246
C54: 52 | D54: =D53+Sheet2!B$20 -> 0.16014 | E54: 0.1594564169 | F54: 177 | G54: 177 | H54: 0.55264 | I54: 0.115240205 | J54: 0.5249360696 | K54: 1 | L54: 0.55264 | M54: 0.115240205 | N54: 3.14 | O54: 0 | R54: 0.6378256675
C55: 53 | D55: =D54+Sheet2!B$20 -> 0.16328 | E55: 0.1625554493 | F55: 142 | G55: 142 | H55: 0.44274 | I55: 0.5631962657 | J55: 0.4284168826 | K55: 0 | L55: 0 | M55: 0.9999996829 | N55: 0.44274 | O55: 0.5631962657 | R55: 0.3251108986
C56: 54 | D56: =D55+Sheet2!B$20 -> 0.16642 | E56: 0.165652879 | F56: 378 | G56: 378 | H56: 1.18378 | I56: 0.3154697767 | J56: 0.9260392993 | K56: 1 | L56: 1.18378 | M56: 0.3154697767 | N56: 3.14 | O56: 0 | R56: 0.6626115159
C57: 55 | D57: =D56+Sheet2!B$20 -> 0.16956 | E57: 0.1687486754 | F57: 467 | G57: 467 | H57: 1.46324 | I57: 0.1533584942 | J57: 0.9942213923 | K57: 1 | L57: 1.46324 | M57: 0.1533584942 | N57: 3.14 | O57: 0 | R57: 0.3374973508
C58: 56 | D58: =D57+Sheet2!B$20 -> 0.1727 | E58: 0.171842808 | F58: 299 | G58: 299 | H58: 0.93572 | I58: 0.613799945 | J58: 0.8050264188 | K58: 1 | L58: 0.93572 | M58: 0.613799945 | N58: 3.14 | O58: 0 | R58: 0.6873712321
C59: 57 | D59: =D58+Sheet2!B$20 -> 0.17584 | E59: 0.1749352464 | F59: 290 | G59: 290 | H59: 0.90746 | I59: 0.4161058852 | J59: 0.7879422804 | K59: 1 | L59: 0.90746 | M59: 0.4161058852 | N59: 3.14 | O59: 0 | R59: 0.3498704927
C60: 58 | D60: =D59+Sheet2!B$20 -> 0.17898 | E60: 0.1780259599 | F60: 314 | G60: 314 | H60: 0.98282 | I60: 0.2608336312 | J60: 0.8320648698 | K60: 1 | L60: 0.98282 | M60: 0.2608336312 | N60: 3.14 | O60: 0 | R60: 0.7121038396
C61: 59 | D61: =D60+Sheet2!B$20 -> 0.18212 | E61: 0.1811149182 | F61: 692 | G61: 692 | H61: 2.16974 | I61: 0.2323547714 | J61: 0.8259316013 | K61: 1 | L61: 2.16974 | M61: 0.2323547714 | N61: 3.14 | O61: 0 | R61: 0.3622298364
C62: 60 | D62: =D61+Sheet2!B$20 -> 0.18526 | E62: 0.1842020907 | F62: 987 | G62: 987 | H62: 3.09604 | I62: 0.8068382759 | J62: 0.04553690126 | K62: 0 | L62: 0 | M62: 0.9999996829 | N62: 3.09604 | O62: 0.8068382759 | R62: 0.7368083629
C63: 61 | D63: =D62+Sheet2!B$20 -> 0.1884 | E63: 0.1872874471 | F63: 677 | G63: 677 | H63: 2.12264 | I63: 0.1840899062 | J63: 0.8515594092 | K63: 1 | L63: 2.12264 | M63: 0.1840899062 | N63: 3.14 | O63: 0 | R63: 0.3745748943
C64: 62 | D64: =D63+Sheet2!B$20 -> 0.19154 | E64: 0.190370957 | F64: 813 | G64: 813 | H64: 2.54968 | I64: 0.009922867843 | J64: 0.557949306 | K64: 1 | L64: 2.54968 | M64: 0.009922867843 | N64: 3.14 | O64: 0 | R64: 0.7614838278
C65: 63 | D65: =D64+Sheet2!B$20 -> 0.19468 | E65: 0.1934525898 | F65: 879 | G65: 879 | H65: 2.75692 | I65: 0.3278503452 | J65: 0.3752557325 | K65: 1 | L65: 2.75692 | M65: 0.3278503452 | N65: 3.14 | O65: 0 | R65: 0.3869051796
C66: 64 | D66: =D65+Sheet2!B$20 -> 0.19782 | E66: 0.1965323153 | F66: 708 | G66: 708 | H66: 2.21998 | I66: 0.1787395018 | J66: 0.7965775631 | K66: 1 | L66: 2.21998 | M66: 0.1787395018 | N66: 3.14 | O66: 0 | R66: 0.7861292611
C67: 65 | D67: =D66+Sheet2!B$20 -> 0.20096 | E67: =SIN(x) -> 0.199610103 | F67: 686 | G67: 686 | H67: 2.1509 | I67: =fmin+(fmax-fmin)*ABS(RAND()) -> 0.07838813034 | J67: 0.83640583 | K67: 1 | L67: =IF(K67=1,H67,xMin) -> 2.1509 | M67: =IF(K67=1,I67,fmax) -> 0.07838813034 | N67: =IF(K67=0,H67,xMax) -> 3.14 | O67: 0 | R67: 0.399220206
C68: 66 | D68: =D67+Sheet2!B$20 -> 0.2041 | E68: 0.2026859227 | F68: 773 | G68: 773 | H68: =LOOKUP(G68,C$3:C$1003,D$3:D$1003) -> 2.42408 | I68: 0.3705153461 | J68: =LOOKUP(H68,D$3:D$1003,E$3:E$1003) -> 0.6575126328 | K68: =IF(I68>J68,0,1) -> 1 | L68: 2.42408 | M68: 0.3705153461 | N68: 3.14 | O68: =IF(K68=0,I68,0) -> 0 | R68: 0.8107436908
C69: 67 | D69: =D68+Sheet2!B$20 -> 0.20724 | E69: 0.205759744 | F69: =INT(1000*ABS(RAND()))+1 -> 563 | G69: =IF(F69>0,F69,-F69) -> 563 | H69: 1.76468 | I69: 0.08427950319 | J69: 0.981263365 | K69: 1 | L69: 1.76468 | M69: 0.08427950319 | N69: 3.14 | O69: 0 | R69: 0.4115194879
C70: 68 | D70: =D69+Sheet2!B$20 -> 0.21038 | E70: 0.2088315365 | F70: 189 | G70: 189 | H70: 0.59032 | I70: 0.04091051683 | J70: 0.5566268954 | K70: 1 | L70: 0.59032 | M70: 0.04091051683 | N70: 3.14 | O70: 0 | R70: 0.8353261461
C71: 69 | D71: =D70+Sheet2!B$20 -> 0.21352 | E71: 0.2119012701 | F71: 619 | G71: 619 | H71: 1.94052 | I71: 0.2211414433 | J71: 0.932427234 | K71: 1 | L71: 1.94052 | M71: 0.2211414433 | N71: 3.14 | O71: 0 | R71: 0.4238025402
C72: 70 | D72: =D71+Sheet2!B$20 -> 0.21666 | E72: 0.2149689144 | F72: 46 | G72: 46 | H72: 0.1413 | I72: 0.3245552947 | J72: 0.1408302772 | K72: 0 | L72: 0 | M72: 0.9999996829 | N72: 0.1413 | O72: 0.3245552947 | R72: 0.8598756577
C73: 71 | D73: =D72+Sheet2!B$20 -> 0.2198 | E73: 0.2180344392 | F73: 370 | G73: 370 | H73: 1.15866 | I73: 0.3652056583 | J73: 0.9162671709 | K73: 1 | L73: 1.15866 | M73: 0.3652056583 | N73: 3.14 | O73: 0 | R73: =2*E73 -> 0.4360688785
C74: 72 | D74: =D73+Sheet2!B$20 -> 0.22294 | E74: 0.2210978143 | F74: 4 | G74: 4 | H74: 0.00942 | I74: 0.03067757687 | J74: 0.009419860684 | K74: 0 | L74: 0 | M74: 0.9999996829 | N74: 0.00942 | O74: 0.03067757687 | R74: =4*E74 -> 0.8843912572
C75: 73 | D75: =D74+Sheet2!B$20 -> 0.22608 | E75: 0.2241590094 | F75: 546 | G75: 546 | H75: 1.7113 | I75: 0.6683344307 | J75: 0.9901455865 | K75: 1 | L75: 1.7113 | M75: 0.6683344307 | N75: 3.14 | O75: 0 | R75: 0.4483180189
C76: 74 | D76: =D75+Sheet2!B$20 -> 0.22922 | E76: 0.2272179945 | F76: 668 | G76: 668 | H76: 2.09438 | I76: 0.1654133293 | J76: 0.8660329549 | K76: 1 | L76: 2.09438 | M76: 0.1654133293 | N76: 3.14 | O76: 0 | R76: 0.9088719779
C77: 75 | D77: =D76+Sheet2!B$20 -> 0.23236 | E77: 0.2302747392 | F77: 564 | G77: 564 | H77: 1.76782 | I77: 0.3007186913 | J77: 0.9806535409 | K77: 1 | L77: 1.76782 | M77: 0.3007186913 | N77: 3.14 | O77: 0 | R77: 0.4605494784
C78: 76 | D78: =D77+Sheet2!B$20 -> 0.2355 | E78: 0.2333292136 | F78: 449 | G78: 449 | H78: 1.40672 | I78: 0.5528689115 | J78: 0.98656965 | K78: 1 | L78: 1.40672 | M78: 0.5528689115 | N78: 3.14 | O78: 0 | R78: 0.9333168542
C79: 77 | D79: =D78+Sheet2!B$20 -> 0.23864 | E79: 0.2363813874 | F79: 913 | G79: 913 | H79: 2.86368 | I79: 0.002379047895 | J79: 0.2743489924 | K79: 1 | L79: 2.86368 | M79: 0.002379047895 | N79: 3.14 | O79: 0 | R79: 0.4727627747
C80: 78 | D80: =D79+Sheet2!B$20 -> 0.24178 | E80: 0.2394312305 | F80: 592 | G80: 592 | H80: 1.85574 | I80: 0.303642683 | J80: 0.9596774878 | K80: 1 | L80: 1.85574 | M80: 0.303642683 | N80: 3.14 | O80: 0 | R80: 0.9577249222
C81: 79 | D81: =D80+Sheet2!B$20 -> 0.24492 | E81: 0.242478713 | F81: 493 | G81: 493 | H81: 1.54488 | I81: 0.1259242386 | J81: 0.9996641908 | K81: 1 | L81: 1.54488 | M81: 0.1259242386 | N81: 3.14 | O81: 0 | R81: 0.4849574261
C82: 80 | D82: =D81+Sheet2!B$20 -> 0.24806 | E82: 0.2455238048 | F82: 299 | G82: 299 | H82: 0.93572 | I82: 0.1856052978 | J82: 0.8050264188 | K82: 1 | L82: 0.93572 | M82: 0.1856052978 | N82: 3.14 | O82: 0 | R82: 0.9820952191
C83: 81 | D83: =D82+Sheet2!B$20 -> 0.2512 | E83: 0.2485664758 | F83: 740 | G83: 740 | H83: 2.32046 | I83: 0.1056872514 | J83: 0.7319180809 | K83: 1 | L83: 2.32046 | M83: 0.1056872514 | N83: 3.14 | O83: 0 | R83: 0.4971329515
C84: 82 | D84: =D83+Sheet2!B$20 -> 0.25434 | E84: 0.251606696 | F84: 578 | G84: 578 | H84: 1.81178 | I84: 0.2271274134 | J84: 0.9711036832 | K84: 1 | L84: 1.81178 | M84: 0.2271274134 | N84: 3.14 | O84: 0 | R84: 1.006426784
C85: 83 | D85: =D84+Sheet2!B$20 -> 0.25748 | E85: 0.2546444354 | F85: 451 | G85: 451 | H85: 1.413 | I85: 0.1194257194 | J85: 0.9875759713 | K85: 1 | L85: 1.413 | M85: 0.1194257194 | N85: 3.14 | O85: 0 | R85: 0.5092888709
C86: 84 | D86: =D85+Sheet2!B$20 -> 0.26062 | E86: 0.2576796642 | F86: 101 | G86: 101 | H86: 0.314 | I86: 0.2992859594 | J86: 0.3088655201 | K86: 1 | L86: 0.314 | M86: 0.2992859594 | N86: 3.14 | O86: 0 | R86: 1.030718657
C87: 85 | D87: =D86+Sheet2!B$20 -> 0.26376 | E87: 0.2607123524 | F87: 417 | G87: 417 | H87: 1.30624 | I87: 0.9196763077 | J87: 0.965208608 | K87: 1 | L87: 1.30624 | M87: 0.9196763077 | N87: 3.14 | O87: 0 | R87: 0.5214247048
C88: 86 | D88: =D87+Sheet2!B$20 -> 0.2669 | E88: 0.2637424701 | F88: 110 | G88: 110 | H88: 0.34226 | I88: 0.5738437685 | J88: 0.3356168642 | K88: 0 | L88: 0 | M88: 0.9999996829 | N88: 0.34226 | O88: 0.5738437685 | R88: 1.05496988
C89: 87 | D89: =D88+Sheet2!B$20 -> 0.27004 | E89: 0.2667699873 | F89: 763 | G89: 763 | H89: 2.39268 | I89: 0.3882438697 | J89: 0.680842758 | K89: 1 | L89: 2.39268 | M89: 0.3882438697 | N89: 3.14 | O89: 0 | R89: 0.5335399746
C90: 88 | D90: =D89+Sheet2!B$20 -> 0.27318 | E90: 0.2697948743 | F90: 914 | G90: 914 | H90: 2.86682 | I90: 0.1506084784 | J90: 0.271328126 | K90: 1 | L90: 2.86682 | M90: 0.1506084784 | N90: 3.14 | O90: 0 | R90: 1.079179497
C91: 89 | D91: =D90+Sheet2!B$20 -> 0.27632 | E91: 0.2728171013 | F91: 281 | G91: 281 | H91: 0.8792 | I91: 0.04889849474 | J91: 0.7702289114 | K91: 1 | L91: 0.8792 | M91: 0.04889849474 | N91: 3.14 | O91: 0 | R91: 0.5456342026
C92: 90 | D92: =D91+Sheet2!B$20 -> 0.27946 | E92: 0.2758366384 | F92: 12 | G92: 12 | H92: 0.03454 | I92: 0.01150236139 | J92: 0.03453313264 | K92: 1 | L92: 0.03454 | M92: 0.01150236139 | N92: 3.14 | O92: 0 | R92: 1.103346553
C93: 91 | D93: =D92+Sheet2!B$20 -> 0.2826 | E93: 0.2788534558 | F93: 841 | G93: 841 | H93: 2.6376 | I93: 0.4973932918 | J93: 0.4829255911 | K93: 0 | L93: 0 | M93: 0.9999996829 | N93: 2.6376 | O93: 0.4973932918 | R93: 0.5577069116
C94: 92 | D94: =D93+Sheet2!B$20 -> 0.28574 | E94: 0.2818675239 | F94: 11 | G94: 11 | H94: 0.0314 | I94: 0.822493745 | J94: 0.0313948404 | K94: 0 | L94: 0 | M94: 0.9999996829 | N94: 0.0314 | O94: 0.822493745 | R94: 1.127470095
C95: 93 | D95: =D94+Sheet2!B$20 -> 0.28888 | E95: 0.2848788128 | F95: 657 | G95: 657 | H95: 2.05984 | I95: 0.7288678098 | J95: 0.8827825272 | K95: 1 | L95: 2.05984 | M95: 0.7288678098 | N95: 3.14 | O95: 0 | R95: 0.5697576257
C96: 94 | D96: =D95+Sheet2!B$20 -> 0.29202 | E96: 0.287887293 | F96: 777 | G96: 777 | H96: 2.43664 | I96: 0.8483888202 | J96: 0.6479977692 | K96: 0 | L96: 0 | M96: 0.9999996829 | N96: 2.43664 | O96: 0.8483888202 | R96: 1.151549172
C97: 95 | D97: =D96+Sheet2!B$20 -> 0.29516 | E97: 0.2908929347 | F97: 976 | G97: 976 | H97: 3.0615 | I97: 0.09735949915 | J97: 0.08000705088 | K97: 0 | L97: 0 | M97: 0.9999996829 | N97: 3.0615 | O97: 0.09735949915 | R97: 0.5817858695
C98: 96 | D98: =D97+Sheet2!B$20 -> 0.2983 | E98: 0.2938957084 | F98: 51 | G98: 51 | H98: 0.157 | I98: 0.3912894402 | J98: 0.1563558123 | K98: 0 | L98: 0 | M98: 0.9999996829 | N98: 0.157 | O98: 0.3912894402 | R98: 1.175582834
C99: 97 | D99: =D98+Sheet2!B$20 -> 0.30144 | E99: 0.2968955843 | F99: 223 | G99: 223 | H99: 0.69708 | I99: 0.1924576594 | J99: 0.6419816048 | K99: 1 | L99: 0.69708 | M99: 0.1924576594 | N99: 3.14 | O99: 0 | R99: 0.5937911687
C100: 98 | D100: =D99+Sheet2!B$20 -> 0.30458 | E100: 0.299892533 | F100: 888 | G100: 888 | H100: 2.78518 | I100: 0.1027460567 | J100: 0.3489145876 | K100: 1 | L100: 2.78518 | M100: 0.1027460567 | N100: 3.14 | O100: 0 | R100: 1.199570132
C101: 99 | D101: =D100+Sheet2!B$20 -> 0.30772 | E101: 0.3028865249 | F101: 404 | G101: 404 | H101: 1.26542 | I101: 0.7559716449 | J101: 0.9537338767 | K101: 1 | L101: 1.26542 | M101: 0.7559716449 | N101: 3.14 | O101: 0 | R101: 0.6057730498
C102: 100 | D102: =D101+Sheet2!B$20 -> 0.31086 | E102: 0.3058775304 | F102: 408 | G102: 408 | H102: 1.27798 | I102: 0.8469459767 | J102: 0.9574347414 | K102: 1 | L102: 1.27798 | M102: 0.8469459767 | N102: 3.14 | O102: 0 | R102: 1.223510122
C103: 101 | D103: =D102+Sheet2!B$20 -> 0.314 | E103: 0.3088655201 | F103: 427 | G103: 427 | H103: 1.33764 | I103: 0.393056282 | J103: 0.9729419746 | K103: 1 | L103: 1.33764 | M103: 0.393056282 | N103: 3.14 | O103: 0 | R103: 0.6177310402
C104: 102 | D104: =D103+Sheet2!B$20 -> 0.31714 | E104: 0.3118504645 | F104: 901 | G104: 901 | H104: 2.826 | I104: 0.1018903132 | J104: 0.3103799097 | K104: 1 | L104: 2.826 | M104: 0.1018903132 | N104: 3.14 | O104: 0 | R104: 1.247401858
C105: 103 | D105: =D104+Sheet2!B$20 -> 0.32028 | E105: 0.3148323342 | F105: 731 | G105: 731 | H105: 2.2922 | I105: 0.5882203895 | J105: 0.7508794282 | K105: 1 | L105: 2.2922 | M105: 0.5882203895 | N105: 3.14 | O105: 0 | R105: 0.6296646684
C106: 104 | D106: =D105+Sheet2!B$20 -> 0.32342 | E106: 0.3178110998 | F106: 899 | G106: 899 | H106: 2.81972 | I106: 0.5960815899 | J106: 0.3163435971 | K106: 0 | L106: 0 | M106: 0.9999996829 | N106: 2.81972 | O106: 0.5960815899 | R106: 1.271244399
C107: 105 | D107: =D106+Sheet2!B$20 -> 0.32656 | E107: 0.3207867319 | F107: 455 | G107: 455 | H107: 1.42556 | I107: 0.8519338884 | J107: 0.9894717308 | K107: 1 | L107: 1.42556 | M107: 0.8519338884 | N107: 3.14 | O107: 0 | R107: 0.6415734637
C108: 106 | D108: =D107+Sheet2!B$20 -> 0.3297 | E108: 0.3237592011 | F108: 492 | G108: 492 | H108: 1.54174 | I108: 0.1863234294 | J108: 0.9995778946 | K108: 1 | L108: 1.54174 | M108: 0.1863234294 | N108: 3.14 | O108: 0 | R108: 1.295036804
C109: 107 | D109: =D108+Sheet2!B$20 -> 0.33284 | E109: 0.3267284782 | F109: 62 | G109: 62 | H109: 0.19154 | I109: 0.8451377303 | J109: 0.190370957 | K109: 0 | L109: 0 | M109: 0.9999996829 | N109: 0.19154 | O109: 0.8451377303 | R109: 0.6534569565
C110: 108 | D110: =D109+Sheet2!B$20 -> 0.33598 | E110: 0.329694534 | F110: 181 | G110: 181 | H110: 0.5652 | I110: 0.3358307622 | J110: 0.535584723 | K110: 1 | L110: 0.5652 | M110: 0.3358307622 | N110: 3.14 | O110: 0 | R110: 1.318778136
C111: 109 | D111: =D110+Sheet2!B$20 -> 0.33912 | E111: 0.332657339 | F111: 59 | G111: 59 | H111: 0.18212 | I111: 0.5453582797 | J111: 0.1811149182 | K111: 0 | L111: 0 | M111: 0.9999996829 | N111: 0.18212 | O111: 0.5453582797 | R111: 0.665314678
C112: 110 | D112: =D111+Sheet2!B$20 -> 0.34226 | E112: 0.3356168642 | F112: 114 | G112: 114 | H112: 0.35482 | I112: 0.9448460926 | J112: 0.3474215832 | K112: 0 | L112: 0 | M112: 0.9999996829 | N112: 0.35482 | O112: 0.9448460926 | R112: 1.342467457
C113: 111 | D113: =D112+Sheet2!B$20 -> 0.3454 | E113: 0.3385730804 | F113: 630 | G113: 630 | H113: 1.97506 | I113: 0.2139016726 | J113: 0.9193922746 | K113: 1 | L113: 1.97506 | M113: 0.2139016726 | N113: 3.14 | O113: 0 | R113: 0.6771461607
C114: 112 | D114: =D113+Sheet2!B$20 -> 0.34854 | E114: 0.3415259583 | F114: 501 | G114: 501 | H114: 1.57 | I114: 0.8005937616 | J114: 0.9999996829 | K114: 1 | L114: 1.57 | M114: 0.8005937616 | N114: 3.14 | O114: 0 | R114: 1.366103833
C115: 113 | D115: =D114+Sheet2!B$20 -> 0.35168 | E115: 0.344475469 | F115: 128 | G115: 128 | H115: 0.39878 | I115: 0.2579483214 | J115: 0.3882943584 | K115: 1 | L115: 0.39878 | M115: 0.2579483214 | N115: 3.14 | O115: 0 | R115: 0.6889509379
C116: 114 | D116: =D115+Sheet2!B$20 -> 0.35482 | E116: 0.3474215832 | F116: 919 | G116: 919 | H116: 2.88252 | I116: 0.2141078858 | J116: 0.2561842632 | K116: 1 | L116: 2.88252 | M116: 0.2141078858 | N116: 3.14 | O116: 0 | R116: 1.389686333
C117: 115 | D117: =D116+Sheet2!B$20 -> 0.35796 | E117: 0.3503642721 | F117: 171 | G117: 171 | H117: 0.5338 | I117: 0.6582946083 | J117: 0.5088083502 | K117: 0 | L117: 0 | M117: 0.9999996829 | N117: 0.5338 | O117: 0.6582946083 | R117: 0.7007285441
C118: 116 | D118: =D117+Sheet2!B$20 -> 0.3611 | E118: 0.3533035064 | F118: 281 | G118: 281 | H118: 0.8792 | I118: 0.4151012461 | J118: 0.7702289114 | K118: 1 | L118: 0.8792 | M118: 0.4151012461 | N118: 3.14 | O118: 0 | R118: 1.413214026
C119: 117 | D119: =D118+Sheet2!B$20 -> 0.36424 | E119: 0.3562392574 | F119: 143 | G119: 143 | H119: 0.44588 | I119: 0.1304866381 | J119: 0.4312520109 | K119: 1 | L119: 0.44588 | M119: 0.1304866381 | N119: 3.14 | O119: 0 | R119: 0.7124785148
C120: 118 | D120: =D119+Sheet2!B$20 -> 0.36738 | E120: 0.359171496 | F120: 775 | G120: 775 | H120: 2.43036 | I120: 0.8381394997 | J120: 0.6527680731 | K120: 0 | L120: 0 | M120: 0.9999996829 | N120: 2.43036 | O120: 0.8381394997 | R120: 1.436685984
C121: 119 | D121: =D120+Sheet2!B$20 -> 0.37052 | E121: 0.3621001933 | F121: 870 | G121: 870 | H121: 2.72866 | I121: 0.01291915532 | J121: 0.4012972077 | K121: 1 | L121: 2.72866 | M121: 0.01291915532 | N121: 3.14 | O121: 0 | R121: 0.7242003865
C122: 120 | D122: =D121+Sheet2!B$20 -> 0.37366 | E122: 0.3650253204 | F122: 751 | G122: 751 | H122: 2.355 | I122: 0.6109630087 | J122: 0.7079509086 | K122: 1 | L122: 2.355 | M122: 0.6109630087 | N122: 3.14 | O122: 0 | R122: 1.460101282
C123: 121 | D123: =D122+Sheet2!B$20 -> 0.3768 | E123: 0.3679468485 | F123: 363 | G123: 363 | H123: 1.13668 | I123: 0.5540695166 | J123: 0.9072420773 | K123: 1 | L123: 1.13668 | M123: 0.5540695166 | N123: 3.14 | O123: 0 | R123: 0.7358936971
C124: 122 | D124: =D123+Sheet2!B$20 -> 0.37994 | E124: 0.3708647489 | F124: 758 | G124: 758 | H124: 2.37698 | I124: 0.2546166157 | J124: 0.6922575218 | K124: 1 | L124: 2.37698 | M124: 0.2546166157 | N124: 3.14 | O124: 0 | R124: 1.483458995
C125: 123 | D125: =D124+Sheet2!B$20 -> 0.38308 | E125: 0.3737789926 | F125: 760 | G125: 760 | H125: 2.38326 | I125: 0.5144309985 | J125: 0.6877119353 | K125: 1 | L125: 2.38326 | M125: 0.5144309985 | N125: 3.14 | O125: 0 | R125: 0.7475579852
C126: 124 | D126: =D125+Sheet2!B$20 -> 0.38622 | E126: 0.3766895511 | F126: 451 | G126: 451 | H126: 1.413 | I126: 0.9541671505 | J126: 0.9875759713 | K126: 1 | L126: 1.413 | M126: 0.9541671505 | N126: 3.14 | O126: 0 | R126: 1.506758204
C127: 125 | D127: =D126+Sheet2!B$20 -> 0.38936 | E127: 0.3795963955 | F127: 247 | G127: 247 | H127: 0.77244 | I127: 0.9511153159 | J127: 0.6978848667 | K127: 0 | L127: 0 | M127: 0.9999996829 | N127: 0.77244 | O127: 0.9511153159 | R127: 0.759192791
C128: 126 | D128: =D127+Sheet2!B$20 -> 0.3925 | E128: 0.3824994973 | F128: 931 | G128: 931 | H128: 2.9202 | I128: 0.7175326873 | J128: 0.2195884981 | K128: 0 | L128: 0 | M128: 0.9999996829 | N128: 2.9202 | O128: 0.7175326873 | R128: 1.529997989
C129: 127 | D129: =D128+Sheet2!B$20 -> 0.39564 | E129: 0.3853988278 | F129: 880 | G129: 880 | H129: 2.76006 | I129: 0.02192552328 | J129: 0.3723433544 | K129: 1 | L129: 2.76006 | M129: 0.02192552328 | N129: 3.14 | O129: 0 | R129: 0.7707976555
C130: 128 | D130: =D129+Sheet2!B$20 -> 0.39878 | E130: 0.3882943584 | F130: 608 | G130: 608 | H130: 1.90598 | I130: 0.5997957464 | J130: 0.9443499076 | K130: 1 | L130: 1.90598 | M130: 0.5997957464 | N130: 3.14 | O130: 0 | R130: 1.553177433
C131: 129 | D131: =D130+Sheet2!B$20 -> 0.40192 | E131: =SIN(x) -> 0.3911860606 | F131: 584 | G131: 584 | H131: 1.83062 | I131: =fmin+(fmax-fmin)*ABS(RAND()) -> 0.8526136491 | J131: 0.9664352933 | K131: 1 | L131: =IF(K131=1,H131,xMin) -> 1.83062 | M131: =IF(K131=1,I131,fmax) -> 0.8526136491 | N131: =IF(K131=0,H131,xMax) -> 3.14 | O131: 0 | R131: 0.7823721211
C132: 130 | D132: =D131+Sheet2!B$20 -> 0.40506 | E132: 0.3940739058 | F132: 1 | G132: 1 | H132: =LOOKUP(G132,C$3:C$1003,D$3:D$1003) -> 0 | I132: 0.01201398245 | J132: =LOOKUP(H132,D$3:D$1003,E$3:E$1003) -> 0 | K132: =IF(I132>J132,0,1) -> 0 | L132: 0 | M132: 0.9999996829 | N132: 0 | O132: =IF(K132=0,I132,0) -> 0.01201398245 | R132: 1.576295623
C133: 131 | D133: =D132+Sheet2!B$20 -> 0.4082 | E133: 0.3969578656 | F133: =INT(1000*ABS(RAND()))+1 -> 786 | G133: =IF(F133>0,F133,-F133) -> 786 | H133: 2.4649 | I133: 0.6947953512 | J133: 0.6262178873 | K133: 0 | L133: 0 | M133: 0.9999996829 | N133: 2.4649 | O133: 0.6947953512 | R133: 0.7939157313
C134: 132 | D134: =D133+Sheet2!B$20 -> 0.41134 | E134: 0.3998379116 | F134: 755 | G134: 755 | H134: 2.36756 | I134: 0.3210671055 | J134: 0.6990246554 | K134: 1 | L134: 2.36756 | M134: 0.3210671055 | N134: 3.14 | O134: 0 | R134: 1.599351647
C135: 133 | D135: =D134+Sheet2!B$20 -> 0.41448 | E135: 0.4027140154 | F135: 98 | G135: 98 | H135: 0.30458 | I135: 0.323019768 | J135: 0.299892533 | K135: 0 | L135: 0 | M135: 0.9999996829 | N135: 0.30458 | O135: 0.323019768 | R135: 0.8054280308
C136: 134 | D136: =D135+Sheet2!B$20 -> 0.41762 | E136: 0.4055861486 | F136: 369 | G136: 369 | H136: 1.15552 | I136: 0.769731161 | J136: 0.9150048734 | K136: 1 | L136: 1.15552 | M136: 0.769731161 | N136: 3.14 | O136: 0 | R136: 1.622344594
C137: 135 | D137: =D136+Sheet2!B$20 -> 0.42076 | E137: 0.4084542828 | F137: 750 | G137: 750 | H137: 2.35186 | I137: 0.808434832 | J137: 0.7101650765 | K137: 0 | L137: 0 | M137: 0.9999996829 | N137: 2.35186 | O137: 0.808434832 | R137: =2*E137 -> 0.8169085657
C138: 136 | D138: =D137+Sheet2!B$20 -> 0.4239 | E138: 0.4113183899 | F138: 513 | G138: 513 | H138: 1.60768 | I138: 0.3230410641 | J138: 0.9993198744 | K138: 1 | L138: 1.60768 | M138: 0.3230410641 | N138: 3.14 | O138: 0 | R138: =4*E138 -> 1.64527356
C139: 137 | D139: =D138+Sheet2!B$20 -> 0.42704 | E139: 0.4141784415 | F139: 13 | G139: 13 | H139: 0.03768 | I139: 0.846368549 | J139: 0.0376710844 | K139: 0 | L139: 0 | M139: 0.9999996829 | N139: 0.03768 | O139: 0.846368549 | R139: 0.828356883
C140: 138 | D140: =D139+Sheet2!B$20 -> 0.43018 | E140: 0.4170344095 | F140: 310 | G140: 310 | H140: 0.97026 | I140: 0.2874730903 | J140: 0.8250326633 | K140: 1 | L140: 0.97026 | M140: 0.2874730903 | N140: 3.14 | O140: 0 | R140: 1.668137638
C141: 139 | D141: =D140+Sheet2!B$20 -> 0.43332 | E141: 0.4198862657 | F141: 124 | G141: 124 | H141: 0.38622 | I141: 0.5524724351 | J141: 0.3766895511 | K141: 0 | L141: 0 | M141: 0.9999996829 | N141: 0.38622 | O141: 0.5524724351 | R141: 0.8397725314
C142: 140 | D142: =D141+Sheet2!B$20 -> 0.43646 | E142: 0.422733982 | F142: 451 | G142: 451 | H142: 1.413 | I142: 0.5789582858 | J142: 0.9875759713 | K142: 1 | L142: 1.413 | M142: 0.5789582858 | N142: 3.14 | O142: 0 | R142: 1.690935928
C143: 141 | D143: =D142+Sheet2!B$20 -> 0.4396 | E143: 0.4255775303 | F143: 508 | G143: 508 | H143: 1.59198 | I143: 0.08295541042 | J143: 0.9997756344 | K143: 1 | L143: 1.59198 | M143: 0.08295541042 | N143: 3.14 | O143: 0 | R143: 0.8511550607
C144: 142 | D144: =D143+Sheet2!B$20 -> 0.44274 | E144: 0.4284168826 | F144: 650 | G144: 650 | H144: 2.03786 | I144: 0.8866538461 | J144: 0.8928942649 | K144: 1 | L144: 2.03786 | M144: 0.8866538461 | N144: 3.14 | O144: 0 | R144: 1.713667531
C145: 143 | D145: =D144+Sheet2!B$20 -> 0.44588 | E145: 0.4312520109 | F145: 863 | G145: 863 | H145: 2.70668 | I145: 0.7944813609 | J145: 0.4213311879 | K145: 0 | L145: 0 | M145: 0.9999996829 | N145: 2.70668 | O145: 0.7944813609 | R145: 0.8625040218
C146: 144 | D146: =D145+Sheet2!B$20 -> 0.44902 | E146: 0.4340828872 | F146: 744 | G146: 744 | H146: 2.33302 | I146: 0.6576809748 | J146: 0.7233022838 | K146: 1 | L146: 2.33302 | M146: 0.6576809748 | N146: 3.14 | O146: 0 | R146: 1.736331549
C147: 145 | D147: =D146+Sheet2!B$20 -> 0.45216 | E147: 0.4369094837 | F147: 794 | G147: 794 | H147: 2.49002 | I147: 0.3140238058 | J147: 0.6064376209 | K147: 1 | L147: 2.49002 | M147: 0.3140238058 | N147: 3.14 | O147: 0 | R147: 0.8738189673
C148: 146 | D148: =D147+Sheet2!B$20 -> 0.4553 | E148: 0.4397317723 | F148: 833 | G148: 833 | H148: 2.61248 | I148: 0.8022183406 | J148: 0.5047675335 | K148: 0 | L148: 0 | M148: 0.9999996829 | N148: 2.61248 | O148: 0.8022183406 | R148: 1.758927089
C149: 147 | D149: =D148+Sheet2!B$20 -> 0.45844 | E149: 0.4425497254 | F149: 497 | G149: 497 | H149: 1.55744 | I149: 0.6718905083 | J149: 0.9999108056 | K149: 1 | L149: 1.55744 | M149: 0.6718905083 | N149: 3.14 | O149: 0 | R149: 0.8850994509
C150: 148 | D150: =D149+Sheet2!B$20 -> 0.46158 | E150: 0.4453633152 | F150: 593 | G150: 593 | H150: 1.85888 | I150: 0.07823199518 | J150: 0.9587900936 | K150: 1 | L150: 1.85888 | M150: 0.07823199518 | N150: 3.14 | O150: 0 | R150: 1.781453261
C151: 149 | D151: =D150+Sheet2!B$20 -> 0.46472 | E151: 0.4481725138 | F151: 411 | G151: 411 | H151: 1.2874 | I151: 0.6590578055 | J151: 0.9601113031 | K151: 1 | L151: 1.2874 | M151: 0.6590578055 | N151: 3.14 | O151: 0 | R151: 0.8963450277
C152: 150 | D152: =D151+Sheet2!B$20 -> 0.46786 | E152: 0.4509772937 | F152: 240 | G152: 240 | H152: 0.75046 | I152: 0.3107715818 | J152: 0.6819752648 | K152: 1 | L152: 0.75046 | M152: 0.3107715818 | N152: 3.14 | O152: 0 | R152: 1.803909175
C153: 151 | D153: =D152+Sheet2!B$20 -> 0.471 | E153: 0.4537776271 | F153: 922 | G153: 922 | H153: 2.89194 | I153: 0.5581948515 | J153: 0.2470673961 | K153: 0 | L153: 0 | M153: 0.9999996829 | N153: 2.89194 | O153: 0.5581948515 | R153: 0.9075552542
C154: 152 | D154: =D153+Sheet2!B$20 -> 0.47414 | E154: 0.4565734864 | F154: 15 | G154: 15 | H154: 0.04396 | I154: 0.6678845396 | J154: 0.04394584272 | K154: 0 | L154: 0 | M154: 0.9999996829 | N154: 0.04396 | O154: 0.6678845396 | R154: 1.826293946
C155: 153 | D155: =D154+Sheet2!B$20 -> 0.47728 | E155: 0.4593648441 | F155: 846 | G155: 846 | H155: 2.6533 | I155: 0.8727676401 | J155: 0.4691187551 | K155: 0 | L155: 0 | M155: 0.9999996829 | N155: 2.6533 | O155: 0.8727676401 | R155: 0.9187296882
C156: 154 | D156: =D155+Sheet2!B$20 -> 0.48042 | E156: 0.4621516727 | F156: 489 | G156: 489 | H156: 1.53232 | I156: 0.3441944223 | J156: 0.9992598775 | K156: 1 | L156: 1.53232 | M156: 0.3441944223 | N156: 3.14 | O156: 0 | R156: 1.848606691
C157: 155 | D157: =D156+Sheet2!B$20 -> 0.48356 | E157: 0.4649339446 | F157: 990 | G157: 990 | H157: 3.10546 | I157: 0.2483387071 | J157: 0.03612479183 | K157: 0 | L157: 0 | M157: 0.9999996829 | N157: 3.10546 | O157: 0.2483387071 | R157: 0.9298678892
C158: 156 | D158: =D157+Sheet2!B$20 -> 0.4867 | E158: 0.4677116325 | F158: 711 | G158: 711 | H158: 2.2294 | I158: 0.6749825771 | J158: 0.7908475726 | K158: 1 | L158: 2.2294 | M158: 0.6749825771 | N158: 3.14 | O158: 0 | R158: 1.87084653
C159: 157 | D159: =D158+Sheet2!B$20 -> 0.48984 | E159: 0.4704847089 | F159: 745 | G159: 745 | H159: 2.33616 | I159: 0.9514195917 | J159: 0.7211304526 | K159: 0 | L159: 0 | M159: 0.9999996829 | N159: 2.33616 | O159: 0.9514195917 | R159: 0.9409694178
C160: 158 | D160: =D159+Sheet2!B$20 -> 0.49298 | E160: 0.4732531465 | F160: 657 | G160: 657 | H160: 2.05984 | I160: 0.7777542087 | J160: 0.8827825272 | K160: 1 | L160: 2.05984 | M160: 0.7777542087 | N160: 3.14 | O160: 0 | R160: 1.893012586
C161: 159 | D161: =D160+Sheet2!B$20 -> 0.49612 | E161: 0.4760169181 | F161: 255 | G161: 255 | H161: 0.79756 | I161: 0.2914463714 | J161: 0.7156539928 | K161: 1 | L161: 0.79756 | M161: 0.2914463714 | N161: 3.14 | O161: 0 | R161: 0.9520338362
C162: 160 | D162: =D161+Sheet2!B$20 -> 0.49926 | E162: 0.4787759963 | F162: 254 | G162: 254 | H162: 0.79442 | I162: 0.7808920154 | J162: 0.7134573197 | K162: 0 | L162: 0 | M162: 0.9999996829 | N162: 0.79442 | O162: 0.7808920154 | R162: 1.915103985
C163: 161 | D163: =D162+Sheet2!B$20 -> 0.5024 | E163: 0.481530354 | F163: 899 | G163: 899 | H163: 2.81972 | I163: 0.1039712232 | J163: 0.3163435971 | K163: 1 | L163: 2.81972 | M163: 0.1039712232 | N163: 3.14 | O163: 0 | R163: 0.963060708
C164: 162 | D164: =D163+Sheet2!B$20 -> 0.50554 | E164: 0.484279964 | F164: 226 | G164: 226 | H164: 0.7065 | I164: 0.2844080361 | J164: 0.6491755174 | K164: 1 | L164: 0.7065 | M164: 0.2844080361 | N164: 3.14 | O164: 0 | R164: 1.937119856
C165: 163 | D165: =D164+Sheet2!B$20 -> 0.50868 | E165: 0.4870247992 | F165: 372 | G165: 372 | H165: 1.16494 | I165: 0.6026388439 | J165: 0.9187646514 | K165: 1 | L165: 1.16494 | M165: 0.6026388439 | N165: 3.14 | O165: 0 | R165: 0.9740495983
C166: 164 | D166: =D165+Sheet2!B$20 -> 0.51182 | E166: 0.4897648325 | F166: 493 | G166: 493 | H166: 1.54488 | I166: 0.3888822028 | J166: 0.9996641908 | K166: 1 | L166: 1.54488 | M166: 0.3888822028 | N166: 3.14 | O166: 0 | R166: 1.95905933
C167: 165 | D167: =D166+Sheet2!B$20 -> 0.51496 | E167: 0.4925000369 | F167: 663 | G167: 663 | H167: 2.07868 | I167: 0.7818618004 | J167: 0.873775695 | K167: 1 | L167: 2.07868 | M167: 0.7818618004 | N167: 3.14 | O167: 0 | R167: 0.9850000739
C168: 166 | D168: =D167+Sheet2!B$20 -> 0.5181 | E168: 0.4952303855 | F168: 51 | G168: 51 | H168: 0.157 | I168: 0.07614018055 | J168: 0.1563558123 | K168: 1 | L168: 0.157 | M168: 0.07614018055 | N168: 3.14 | O168: 0 | R168: 1.980921542
C169: 167 | D169: =D168+Sheet2!B$20 -> 0.52124 | E169: 0.4979558513 | F169: 364 | G169: 364 | H169: 1.13982 | I169: 0.7397852145 | J169: 0.9085583144 | K169: 1 | L169: 1.13982 | M169: 0.7397852145 | N169: 3.14 | O169: 0 | R169: 0.9959117027
C170: 168 | D170: =D169+Sheet2!B$20 -> 0.52438 | E170: 0.5006764075 | F170: 791 | G170: 791 | H170: 2.4806 | I170: 0.3203860067 | J170: 0.6139007384 | K170: 1 | L170: 2.4806 | M170: 0.3203860067 | N170: 3.14 | O170: 0 | R170: 2.00270563
C171: 169 | D171: =D170+Sheet2!B$20 -> 0.52752 | E171: 0.5033920272 | F171: 691 | G171: 691 | H171: 2.1666 | I171: 0.07297194983 | J171: 0.8276977656 | K171: 1 | L171: 2.1666 | M171: 0.07297194983 | N171: 3.14 | O171: 0 | R171: 1.006784054
C172: 170 | D172: =D171+Sheet2!B$20 -> 0.53066 | E172: 0.5061026837 | F172: 408 | G172: 408 | H172: 1.27798 | I172: 0.206485011 | J172: 0.9574347414 | K172: 1 | L172: 1.27798 | M172: 0.206485011 | N172: 3.14 | O172: 0 | R172: 2.024410735
C173: 171 | D173: =D172+Sheet2!B$20 -> 0.5338 | E173: 0.5088083502 | F173: 668 | G173: 668 | H173: 2.09438 | I173: 0.2869586353 | J173: 0.8660329549 | K173: 1 | L173: 2.09438 | M173: 0.2869586353 | N173: 3.14 | O173: 0 | R173: 1.0176167
C174: 172 | D174: =D173+Sheet2!B$20 -> 0.53694 | E174: 0.5115090001 | F174: 802 | G174: 802 | H174: 2.51514 | I174: 0.4674140801 | J174: 0.5862747037 | K174: 1 | L174: 2.51514 | M174: 0.4674140801 | N174: 3.14 | O174: 0 | R174: 2.046036
C175: 173 | D175: =D174+Sheet2!B$20 -> 0.54008 | E175: 0.5142046067 | F175: 821 | G175: 821 | H175: 2.5748 | I175: 0.6827480211 | J175: 0.5369290097 | K175: 0 | L175: 0 | M175: 0.9999996829 | N175: 2.5748 | O175: 0.6827480211 | R175: 1.028409213
C176: 174 | D176: =D175+Sheet2!B$20 -> 0.54322 | E176: 0.5168951435 | F176: 782 | G176: 782 | H176: 2.45234 | I176: 0.02602481277 | J176: 0.6359606166 | K176: 1 | L176: 2.45234 | M176: 0.02602481277 | N176: 3.14 | O176: 0 | R176: 2.067580574
C177: 175 | D177: =D176+Sheet2!B$20 -> 0.54636 | E177: 0.5195805838 | F177: 528 | G177: 528 | H177: 1.65478 | I177: 0.4879533884 | J177: 0.9964754437 | K177: 1 | L177: 1.65478 | M177: 0.4879533884 | N177: 3.14 | O177: 0 | R177: 1.039161168
C178: 176 | D178: =D177+Sheet2!B$20 -> 0.5495 | E178: 0.5222609014 | F178: 949 | G178: 949 | H178: 2.97672 | I178: 0.8943083093 | J178: 0.1641267128 | K178: 0 | L178: 0 | M178: 0.9999996829 | N178: 2.97672 | O178: 0.8943083093 | R178: 2.089043605
C179: 177 | D179: =D178+Sheet2!B$20 -> 0.55264 | E179: 0.5249360696 | F179: 65 | G179: 65 | H179: 0.20096 | I179: 0.3340500059 | J179: 0.199610103 | K179: 0 | L179: 0 | M179: 0.9999996829 | N179: 0.20096 | O179: 0.3340500059 | R179: 1.049872139
C180: 178 | D180: =D179+Sheet2!B$20 -> 0.55578 | E180: 0.5276060622 | F180: 784 | G180: 784 | H180: 2.45862 | I180: 0.2743106691 | J180: 0.6311016967 | K180: 1 | L180: 2.45862 | M180: 0.2743106691 | N180: 3.14 | O180: 0 | R180: 2.110424249
C181: 179 | D181: =D180+Sheet2!B$20 -> 0.55892 | E181: 0.5302708528 | F181: 59 | G181: 59 | H181: 0.18212 | I181: 0.8543699833 | J181: 0.1811149182 | K181: 0 | L181: 0 | M181: 0.9999996829 | N181: 0.18212 | O181: 0.8543699833 | R181: 1.060541706
C182: 180 | D182: =D181+Sheet2!B$20 -> 0.56206 | E182: 0.5329304151 | F182: 234 | G182: 234 | H182: 0.73162 | I182: 0.757449379 | J182: 0.6680759419 | K182: 0 | L182: 0 | M182: 0.9999996829 | N182: 0.73162 | O182: 0.757449379 | R182: 2.131721661
C183: 181 | D183: =D182+Sheet2!B$20 -> 0.5652 | E183: 0.535584723 | F183: 402 | G183: 402 | H183: 1.25914 | I183: 0.1623084901 | J183: 0.951826987 | K183: 1 | L183: 1.25914 | M183: 0.1623084901 | N183: 3.14 | O183: 0 | R183: 1.071169446
C184: 182 | D184: =D183+Sheet2!B$20 -> 0.56834 | E184: 0.5382337503 | F184: 306 | G184: 306 | H184: 0.9577 | I184: 0.9588883758 | J184: 0.8178703067 | K184: 0 | L184: 0 | M184: 0.9999996829 | N184: 0.9577 | O184: 0.9588883758 | R184: 2.152935001
C185: 183 | D185: =D184+Sheet2!B$20 -> 0.57148 | E185: 0.5408774707 | F185: 914 | G185: 914 | H185: 2.86682 | I185: 0.7360853013 | J185: 0.271328126 | K185: 0 | L185: 0 | M185: 0.9999996829 | N185: 2.86682 | O185: 0.7360853013 | R185: 1.081754941
C186: 184 | D186: =D185+Sheet2!B$20 -> 0.57462 | E186: 0.5435158584 | F186: 319 | G186: 319 | H186: 0.99852 | I186: 0.3818745522 | J186: 0.8406704161 | K186: 1 | L186: 0.99852 | M186: 0.3818745522 | N186: 3.14 | O186: 0 | R186: 2.174063433
C187: 185 | D187: =D186+Sheet2!B$20 -> 0.57776 | E187: 0.5461488871 | F187: 691 | G187: 691 | H187: 2.1666 | I187: 0.5570960117 | J187: 0.8276977656 | K187: 1 | L187: 2.1666 | M187: 0.5570960117 | N187: 3.14 | O187: 0 | R187: 1.092297774
C188: 186 | D188: =D187+Sheet2!B$20 -> 0.5809 | E188: 0.5487765311 | F188: 123 | G188: 123 | H188: 0.38308 | I188: 0.3217990671 | J188: 0.3737789926 | K188: 1 | L188: 0.38308 | M188: 0.3217990671 | N188: 3.14 | O188: 0 | R188: 2.195106125
C189: 187 | D189: =D188+Sheet2!B$20 -> 0.58404 | E189: 0.5513987644 | F189: 439 | G189: 439 | H189: 1.37532 | I189: 0.6327714284 | J189: 0.9809552621 | K189: 1 | L189: 1.37532 | M189: 0.6327714284 | N189: 3.14 | O189: 0 | R189: 1.102797529
C190: 188 | D190: =D189+Sheet2!B$20 -> 0.58718 | E190: 0.5540155611 | F190: 113 | G190: 113 | H190: 0.35168 | I190: 0.4305591632 | J190: 0.344475469 | K190: 0 | L190: 0 | M190: 0.9999996829 | N190: 0.35168 | O190: 0.4305591632 | R190: 2.216062244
C191: 189 | D191: =D190+Sheet2!B$20 -> 0.59032 | E191: 0.5566268954 | F191: 883 | G191: 883 | H191: 2.76948 | I191: 0.3795648049 | J191: 0.3635843082 | K191: 0 | L191: 0 | M191: 0.9999996829 | N191: 2.76948 | O191: 0.3795648049 | R191: 1.113253791
C192: 190 | D192: =D191+Sheet2!B$20 -> 0.59346 | E192: 0.5592327417 | F192: 696 | G192: 696 | H192: 2.1823 | I192: 0.6226120419 | J192: 0.8187856861 | K192: 1 | L192: 2.1823 | M192: 0.6226120419 | N192: 3.14 | O192: 0 | R192: 2.236930967
C193: 191 | D193: =D192+Sheet2!B$20 -> 0.5966 | E193: 0.5618330741 | F193: 902 | G193: 902 | H193: 2.82914 | I193: 0.5586602205 | J193: 0.3073934609 | K193: 0 | L193: 0 | M193: 0.9999996829 | N193: 2.82914 | O193: 0.5586602205 | R193: 1.123666148
C194: 192 | D194: =D193+Sheet2!B$20 -> 0.59974 | E194: 0.5644278671 | F194: 539 | G194: 539 | H194: 1.68932 | I194: 0.577180631 | J194: 0.9929842882 | K194: 1 | L194: 1.68932 | M194: 0.577180631 | N194: 3.14 | O194: 0 | R194: 2.257711468
C195: 193 | D195: =D194+Sheet2!B$20 -> 0.60288 | E195: =SIN(x) -> 0.567017095 | F195: 363 | G195: 363 | H195: 1.13668 | I195: =fmin+(fmax-fmin)*ABS(RAND()) -> 0.5825499715 | J195: 0.9072420773 | K195: 1 | L195: =IF(K195=1,H195,xMin) -> 1.13668 | M195: =IF(K195=1,I195,fmax) -> 0.5825499715 | N195: =IF(K195=0,H195,xMax) -> 3.14 | O195: 0 | R195: 1.13403419
C196: 194 | D196: =D195+Sheet2!B$20 -> 0.60602 | E196: 0.5696007324 | F196: 164 | G196: 164 | H196: =LOOKUP(G196,C$3:C$1003,D$3:D$1003) -> 0.51182 | I196: 0.03365351432 | J196: =LOOKUP(H196,D$3:D$1003,E$3:E$1003) -> 0.4897648325 | K196: =IF(I196>J196,0,1) -> 1 | L196: 0.51182 | M196: 0.03365351432 | N196: 3.14 | O196: =IF(K196=0,I196,0) -> 0 | R196: 2.27840293
C197: 195 | D197: =D196+Sheet2!B$20 -> 0.60916 | E197: 0.5721787537 | F197: =INT(1000*ABS(RAND()))+1 -> 22 | G197: =IF(F197>0,F197,-F197) -> 22 | H197: 0.06594 | I197: 0.04659024356 | J197: 0.06589222495 | K197: 1 | L197: 0.06594 | M197: 0.04659024356 | N197: 3.14 | O197: 0 | R197: 1.144357507
C198: 196 | D198: =D197+Sheet2!B$20 -> 0.6123 | E198: 0.5747511336 | F198: 299 | G198: 299 | H198: 0.93572 | I198: 0.7388936275 | J198: 0.8050264188 | K198: 1 | L198: 0.93572 | M198: 0.7388936275 | N198: 3.14 | O198: 0 | R198: 2.299004535
C199: 197 | D199: =D198+Sheet2!B$20 -> 0.61544 | E199: 0.5773178467 | F199: 108 | G199: 108 | H199: 0.33598 | I199: 0.6516674832 | J199: 0.329694534 | K199: 0 | L199: 0 | M199: 0.9999996829 | N199: 0.33598 | O199: 0.6516674832 | R199: 1.154635693
C200: 198 | D200: =D199+Sheet2!B$20 -> 0.61858 | E200: 0.5798788677 | F200: 266 | G200: 266 | H200: 0.8321 | I200: 0.9235053313 | J200: 0.739346982 | K200: 0 | L200: 0 | M200: 0.9999996829 | N200: 0.8321 | O200: 0.9235053313 | R200: 2.319515471
... 2303 more rows

Sheet Defining Function
A1: Defining a Function in Excel
A3: Computers have very specific rules you must follow when defining a function. If you don't, the program will either not work at all or will work incorrectly.
A5: 1. The Variable used should be the one named in the instruction, usually x, though sometimes y, t, Q (for an angle theta),
A6: or even x and y (for a function of two variables).
A8: 2. Order of Operations: There five arithmetic operations, addition (+), subtraction (-), multiplication (*), division (/), and exponentiation or power (^). When computers see any of these operation symbols, they perform the indicated steps in a very particular order. First, the power is done. Second, products and quotients of adjacent terms is done. Third, and last, sums and differences of adjacent terms are done. So, in 10*x^3 + 5*x – 7, say with x = 2, the first pass only calculates 2^3 and ignores the multiplications and the sums and differences to calculate 2^3 = 8. The second pass looks at 10*8 + 5*2 – 7 and only does the multiplications, so it produces 80 + 10 - 7. The third pass looks at the +’s and –‘s to produce 80 + 10 – 7 = 83.
A10: 3. Parentheses If you need an operation involving more than two adjacent terms, as in Ö4^3 + 6^2, the computer would take the square root of 4 to produce 2^3 + 6^2; it would then cube the 2 and square the 6 to produce 8 + 36; and finally it would add the 8 and the 36 to get 44. If you actually wanted the square root of the entire expression, you would need to use parentheses, as in Ö(4^3 + 6^2) to tell the computer to do all the operations inside the parentheses before taking the square root. Therefore, it would calculate (4^3 + 6^2) = 64 + 36 = 100 and then take the square root of Ö100 = 10.
A12: 4. Built-In Functions Computer programs have built-in functions for most common algebraic functions. In Excel, the square root function is denoted by SQRT(…), so SQRT(100) = 10. Alternatively, you could enter it as 100^.5 or 100^(1/2); notice that parentheses are needed to have the ½ done first. The common trig functions are SIN (…), COS (…), and TAN (…), where the arguments are automatically interpreted as being in radians, not degrees. The logarithm to the base 10 is represented by LOG (…) and the logarithm with the base e, known as the natural logarithm, is LN (…). The corresponding exponential function with base e is EXP (x). If x is the variable, then each of these would be SQRT (x), SIN (x), COS (x), TAN (x), LOG (x) (for log with base 10 ), LN (x) (for log with base e ), and EXP (x).

Sheet Sheet3
A1: s
